[Event "SVK-ch Open 2018"]
[Site "Banska Stiavnica"]
[Date "2018.07.08"]
[Round "2"]
[White "Jencopala, Alexander"]
[Black "Macko, Michal"]
[Result "1/2-1/2"]
[ECO "B33"]
[WhiteElo "1943"]
[BlackElo "2158"]
[Annotator "NA"]
[PlyCount "50"]
[EventDate "2018.07.07"]
[EventType "swiss"]
[EventCountry "SVK"]
[SourceTitle "playchess.com"]
[Source "ChessBase"]
[SourceQuality "1"]
[TimeControl "40/5400+30:1800+30"]

1. e4 {[%emt 0:00:00]} c5 {[%emt 0:00:00]} 2. Nf3 {[%emt 0:00:14]} Nc6 {[%emt 0:00:39]} 3. d4 {[%emt 0:00:32]} cxd4 {[%emt 0:00:05]} 4. Nxd4 {[%emt 0:00:11]} Nf6 {[%emt 0:00:04]} 5. Nc3 {[%emt 0:00:40]} e5 {[%emt 0:00:06]} 6. Ndb5 {[%emt 0:04:14]} d6 {[%emt 0:00:31]} 7. Bg5 {[%emt 0:01:24]} a6 {[%emt 0:00:07]} 8. Na3 {[%emt 0:00:16]} Be6 {[%emt 0:00:06]} 9. Bxf6 {[%emt 0:05:00]} Qxf6 {[%emt 0:00:26]} 10. Nd5 {[%emt 0:01:20]} Qd8 {[%emt 0:04:48]} 11. c3 {[%emt 0:07:45]} Be7 {[%emt 0:00:19]} 12. Nc4 {[%emt 0:12:36]} O-O {[%emt 0:07:22]} 13. Be2 {[%emt 0:12:35]} b5 {[%emt 0:06:16]} 14. Nce3 {[%emt 0:03:31]} Bg5 {[%emt 0:00:41]} 15. O-O {[%emt 0:02:57]} Bxe3 {[%emt 0:01:33]} 16. Nxe3 {[%emt 0:00:58]} Ne7 {[%emt 0:00:18]} 17. a4 {[%emt 0:03:05]} Qb6 {[%emt 0:01:05]} 18. axb5 {[%emt 0:02:49]} axb5 {[%emt 0:00:05]} 19. Qd2 {[%emt 0:01:58]} Rab8 {[%emt 0:20:58]} 20. b4 {[%emt 0:01:47]} Rfc8 {[%emt 0:01:04]} 21. Ra5 {[%emt 0:07:51]} Qc6 {[%emt 0:00:19]} 22. Qd3 {[%emt 0:01:09]} Qxc3 {[%emt 0:04:36]} 23. Qxd6 {[%emt 0:00:58]} Nc6 {[%emt 0:03:10]} 24. Rxb5 {[%emt 0:00:49]} Rxb5 {[%emt 0:01:41]} 25. Bxb5 {[%emt 0:00:18]} Qxb4 {[%emt 0:03:35]} 1/2-1/2

[Event "SVK-ch Open 2018"]
[Site "Banska Stiavnica"]
[Date "2018.07.08"]
[Round "2"]
[White "Tomanek, Rafael"]
[Black "Cech, Dominik"]
[Result "0-1"]
[ECO "A48"]
[WhiteElo "1939"]
[BlackElo "2151"]
[Annotator "NA"]
[PlyCount "81"]
[EventDate "2018.07.07"]
[EventType "swiss"]
[EventCountry "SVK"]
[SourceTitle "playchess.com"]
[Source "ChessBase"]
[SourceQuality "1"]
[TimeControl "40/5400+30:1800+30"]

1. d4 {[%emt 0:00:00]} Nf6 {[%emt 0:00:00]} 2. Nf3 {[%emt 0:00:00]} g6 {[%emt 0:00:00]} 3. c4 {[%emt 0:00:00]} Bg7 {[%emt 0:00:00]} 4. Nc3 {[%emt 0:00:00]} O-O {[%emt 0:00:31]} 5. e4 {[%emt 0:00:00]} d6 {[%emt 0:00:12]} 6. h3 {[%emt 0:00:02]} c6 {[%emt 0:02:05]} 7. Bg5 {[%emt 0:01:37]} e5 {[%emt 0:02:46]} 8. dxe5 {[%emt 0:02:00]} dxe5 {[%emt 0:00:15]} 9. Qxd8 {[%emt 0:00:14]} Rxd8 {[%emt 0:00:11]} 10. Rd1 {[%emt 0:00:19]} Rxd1+ {[%emt 0:06:41]} 11. Kxd1 {[%emt 0:00:12]} Nbd7 {[%emt 0:01:44]} 12. Be2 {[%emt 0:05:12]} Nc5 $11 {[%emt 0:07:05]} 13. Nd2 {[%emt 0:01:19]} a5 {[%emt 0:02:17]} 14. Kc2 {[%emt 0:04:44]} Ne6 {[%emt 0:04:06]} 15. Be3 {[%emt 0:02:49]} Bf8 {[%emt 0:03:52]} 16. Na4 {[%emt 0:10:20]} Nd7 {[%emt 0:07:54]} 17. Nb3 {[%emt 0:05:16]} f5 {[%emt 0:06:38]} 18. f3 {[%emt 0:00:57]} Be7 {[%emt 0:05:08]} 19. Bd3 {[%emt 0:10:59]} f4 {[%emt 0:03:35]} 20. Bf2 {[%emt 0:00:09]} Bd8 {[%emt 0:00:58]} 21. Rd1 {[%emt 0:04:49]} b6 {[%emt 0:07:34]} 22. Bf1 {[%emt 0:01:59]} Bc7 {[%emt 0:01:17]} 23. Nc1 {[%emt 0:06:56]} Rb8 {[%emt 0:02:07]} 24. b3 {[%emt 0:03:25]} g5 {[%emt 0:01:44]} 25. Ne2 {[%emt 0:04:22]} Kf7 {[%emt 0:01:17]} 26. g4 {[%emt 0:00:47]} h5 {[%emt 0:04:25]} 27. a3 {[%emt 0:06:31]} Ke7 {[%emt 0:04:39]} 28. Nac3 {[%emt 0:01:59]} Bd6 {[%emt 0:01:07]} 29. a4 {[%emt 0:01:37]} Bc5 {[%emt 0:02:50]} 30. Bxc5+ {[%emt 0:02:23]} Ndxc5 {[%emt 0:00:07]} 31. gxh5 {[%emt 0:05:08]} Bd7 {[%emt 0:00:59]} 32. h4 {[%emt 0:01:04]} gxh4 {[%emt 0:01:43]} 33. Bh3 {[%emt 0:00:58]} Ng5 {[%emt 0:05:14]} 34. Bxd7 {[%emt 0:04:06]} Nxd7 {[%emt 0:00:12]} 35. Ng1 {[%emt 0:00:34]} Rh8 {[%emt 0:01:03]} 36. Rd2 {[%emt 0:01:45]} Rxh5 {[%emt 0:05:00]} 37. Nd1 {[%emt 0:01:35]} Nc5 {[%emt 0:01:38]} 38. Nf2 {[%emt 0:04:52]} Nce6 {[%emt 0:01:36]} 39. Ng4 {[%emt 0:01:08]} Nd4+ {[%emt 0:00:51]} 40. Kc3 {[%emt 0:00:39]} Ndxf3 {[%emt 0:02:12]} 41. Nxf3 {[%emt 0:31:12]} 0-1

[Event "SVK-ch Open 2018"]
[Site "Banska Stiavnica"]
[Date "2018.07.08"]
[Round "2"]
[White "Soldan, Jan"]
[Black "Pesztericz, Laszlo"]
[Result "0-1"]
[ECO "C50"]
[WhiteElo "1759"]
[BlackElo "1980"]
[Annotator "NA"]
[PlyCount "92"]
[EventDate "2018.07.07"]
[EventType "swiss"]
[EventCountry "SVK"]
[SourceTitle "playchess.com"]
[Source "ChessBase"]
[SourceQuality "1"]
[TimeControl "40/5400+30:1800+30"]

1. e4 {[%emt 0:00:00]} e5 {[%emt 0:00:00]} 2. Nf3 {[%emt 0:00:00]} Nc6 {[%emt 0:00:00]} 3. Bc4 {[%emt 0:00:00]} Nf6 {[%emt 0:00:09]} 4. d3 {[%emt 0:00:26]} Bc5 {[%emt 0:00:27]} 5. O-O {[%emt 0:00:21]} O-O {[%emt 0:00:50]} 6. Bg5 {[%emt 0:00:38]} d6 {[%emt 0:00:49]} 7. Nbd2 {[%emt 0:00:56]} Be6 {[%emt 0:06:28]} 8. Bxe6 {[%emt 0:00:39]} fxe6 {[%emt 0:00:02]} 9. c3 {[%emt 0:02:23]} a5 {[%emt 0:00:37]} 10. a4 {[%emt 0:03:23]} h6 {[%emt 0:08:03]} 11. Bh4 {[%emt 0:00:34]} Qd7 {[%emt 0:07:00]} 12. Bxf6 {[%emt 0:03:17]} Rxf6 {[%emt 0:01:58]} 13. Nb3 {[%emt 0:00:59]} Bb6 {[%emt 0:00:18]} 14. d4 {[%emt 0:00:13]} exd4 15. cxd4 {[%emt 0:02:10]} Rf4 {[%emt 0:04:45]} 16. Qd3 {[%emt 0:00:52]} Raf8 {[%emt 0:00:29]} 17. Nbd2 {[%emt 0:00:42]} d5 {[%emt 0:01:57]} 18. Rae1 {[%emt 0:05:23]} dxe4 {[%emt 0:04:51]} 19. Rxe4 {[%emt 0:00:15]} Rxe4 {[%emt 0:04:06]} 20. Qxe4 {[%emt 0:00:36]} Bxd4 {[%emt 0:03:46]} 21. Nxd4 {[%emt 0:01:03]} Nxd4 {[%emt 0:02:07]} 22. Re1 {[%emt 0:00:56]} Qd5 {[%emt 0:00:54]} 23. Qd3 {[%emt 0:03:05]} Nc6 {[%emt 0:06:14]} 24. Qe3 {[%emt 0:04:17]} e5 {[%emt 0:03:54]} 25. b3 {[%emt 0:01:57]} Rd8 {[%emt 0:04:25]} 26. Nf3 {[%emt 0:04:55]} Qd3 {[%emt 0:00:28]} 27. g3 {[%emt 0:01:28]} Qxe3 {[%emt 0:03:33]} 28. Rxe3 {[%emt 0:00:14]} Rd5 {[%emt 0:00:07]} 29. Kf1 {[%emt 0:00:50]} Kf7 {[%emt 0:00:14]} 30. Ke2 {[%emt 0:00:04]} Kf6 {[%emt 0:00:12]} 31. h3 {[%emt 0:02:41]} Nd4+ {[%emt 0:06:18]} 32. Nxd4 {[%emt 0:02:00]} exd4 {[%emt 0:00:12]} 33. Rf3+ {[%emt 0:00:52]} Rf5 {[%emt 0:02:51]} 34. Rd3 {[%emt 0:02:54]} Ke5 {[%emt 0:01:46]} 35. f3 {[%emt 0:02:57]} Kd5 {[%emt 0:00:42]} 36. Rd2 {[%emt 0:01:33]} Re5+ {[%emt 0:01:08]} 37. Kf2 {[%emt 0:00:40]} Re3 {[%emt 0:00:30]} 38. Rb2 {[%emt 0:01:41]} Kc5 {[%emt 0:03:36]} 39. Rc2+ {[%emt 0:00:15]} Rc3 {[%emt 0:00:34]} 40. Rxc3+ {[%emt 0:04:01]} dxc3 {[%emt 0:00:12]} 41. Ke2 {[%emt 0:30:21]} Kb4 {[%emt 0:30:27]} 42. Kd1 {[%emt 0:00:37]} Kxb3 {[%emt 0:00:10]} 43. Kc1 {[%emt 0:00:10]} Kxa4 {[%emt 0:04:14]} 44. f4 {[%emt 0:00:24]} Kb3 {[%emt 0:00:50]} 45. g4 {[%emt 0:00:09]} a4 {[%emt 0:00:10]} 46. g5 {[%emt 0:00:43]} a3 {[%emt 0:00:19]} 0-1

[Event "SVK-ch Open 2018"]
[Site "Banska Stiavnica"]
[Date "2018.07.08"]
[Round "2"]
[White "Cedzo, Adam"]
[Black "Lukac, Roman"]
[Result "0-1"]
[ECO "C54"]
[WhiteElo "1737"]
[BlackElo "2089"]
[Annotator "NA"]
[PlyCount "86"]
[EventDate "2018.07.07"]
[EventType "swiss"]
[EventCountry "SVK"]
[SourceTitle "playchess.com"]
[Source "ChessBase"]
[SourceQuality "1"]
[TimeControl "40/5400+30:1800+30"]

1. e4 {[%emt 0:00:00]} e5 {[%emt 0:00:00]} 2. Nf3 {[%emt 0:00:00]} Nc6 {[%emt 0:00:01]} 3. Bc4 {[%emt 0:00:00]} Bc5 {[%emt 0:01:03]} 4. c3 {[%emt 0:00:07]} Nf6 {[%emt 0:00:22]} 5. d4 {[%emt 0:00:10]} exd4 {[%emt 0:00:49]} 6. e5 {[%emt 0:00:10]} d5 {[%emt 0:02:31]} 7. exd6 {[%emt 0:00:37] C54: Giuoco Piano: 4 c3 Nf6, main lines with 5 d4 and 5 d3} (7. Bb5 Ne4 8. cxd4 Bb6 9. Nc3 O-O 10. Be3 Bg4 11. h3 Bh5 12. Qc2 Bxf3 13. gxf3 Ng5 14. O-O-O Nxf3 15. Bxc6 bxc6 16. Qf5 Nh4 17. Qg4 Ng6 {½-½ (38) Naiditsch,A (2701)-Anand,V (2776) Karlsruhe/Baden-Baden 2018}) 7... Qxd6 {[%emt 0:04:11]} 8. O-O {[%emt 0:01:26]} O-O {[%emt 0:01:05]} 9. b4 {[%emt 0:03:05]} Bb6 {[%emt 0:04:53]} 10. Ba3 {[%emt 0:03:37]} Ne5 {[%emt 0:17:29]} 11. b5 {[%emt 0:01:29]} Nxf3+ {[%emt 0:04:04]} 12. Qxf3 {[%emt 0:02:22]} Bc5 $146 {[%emt 0:01:26]} 13. cxd4 {[%emt 0:02:25]} Bxa3 {[%emt 0:05:08]} 14. Nxa3 {[%emt 0:00:36]} Bg4 {[%emt 0:00:19]} 15. Qc3 {[%emt 0:02:05]} Rad8 {[%emt 0:16:14]} 16. Nc2 {[%emt 0:00:55]} Bh5 {[%emt 0:02:11]} 17. h3 {[%emt 0:01:02]} Bg6 {[%emt 0:07:52]} 18. Rad1 {[%emt 0:02:06]} h5 {[%emt 0:02:07]} 19. Ne3 $11 {[%emt 0:02:47]} Rfe8 {[%emt 0:03:15]} 20. Bb3 {[%emt 0:00:34]} Qf4 {[%emt 0:06:26]} 21. Nc4 {[%emt 0:02:13]} Nd5 {[%emt 0:10:05]} 22. Qb2 {[%emt 0:01:36]} Qg5 {[%emt 0:03:53]} 23. Kh1 {[%emt 0:05:28]} Nf4 {[%emt 0:00:44]} 24. Ne3 {[%emt 0:00:31]} Be4 {[%emt 0:02:45]} 25. f3 {[%emt 0:00:49]} Bd3 {[%emt 0:01:08]} 26. Rfe1 {[%emt 0:00:33]} Bxb5 {[%emt 0:00:23]} 27. Kh2 {[%emt 0:04:53]} Nd3 {[%emt 0:00:43]} 28. Qd2 {[%emt 0:02:20]} Nxe1 {[%emt 0:00:44]} 29. Rxe1 {[%emt 0:00:12]} Qf4+ {[%emt 0:00:26]} 30. Kh1 {[%emt 0:00:29]} Qxd4 {[%emt 0:00:32]} 31. Qa5 {[%emt 0:01:11]} Rxe3 {[%emt 0:00:44]} 32. Rxe3 {[%emt 0:00:31]} Qxe3 {[%emt 0:00:12]} 33. Qxb5 {[%emt 0:00:30]} Qc1+ {[%emt 0:01:00]} 34. Kh2 {[%emt 0:00:09]} Qf4+ {[%emt 0:00:06]} 35. Kh1 {[%emt 0:00:15]} c6 {[%emt 0:01:13]} 36. Qe2 {[%emt 0:00:48]} Kf8 {[%emt 0:00:38]} 37. Qf2 {[%emt 0:00:46]} h4 {[%emt 0:00:23]} 38. Qxa7 {[%emt 0:00:37]} Re8 {[%emt 0:00:12]} 39. Qa5 {[%emt 0:03:09]} Qg3 {[%emt 0:00:43]} 40. Qb4+ {[%emt 0:01:04]} Kg8 {[%emt 0:00:29]} 41. Bxf7+ {[%emt 0:30:07]} Kxf7 {[%emt 0:30:11]} 42. Qxb7+ {[%emt 0:00:20]} Kg8 {[%emt 0:00:47]} 43. Qxc6 {[%emt 0:03:57]} Re1# {[%emt 0:00:12]} 0-1

[Event "SVK-ch Open 2018"]
[Site "Banska Stiavnica"]
[Date "2018.07.08"]
[Round "2"]
[White "Slaby, Jozef"]
[Black "Balogh, Peter"]
[Result "0-1"]
[ECO "A04"]
[WhiteElo "1731"]
[BlackElo "2097"]
[Annotator "NA"]
[PlyCount "72"]
[EventDate "2018.07.07"]
[EventType "swiss"]
[EventCountry "SVK"]
[SourceTitle "playchess.com"]
[Source "ChessBase"]
[SourceQuality "1"]
[TimeControl "40/5400+30:1800+30"]

1. Nf3 {[%emt 0:00:00]} Nc6 {[%emt 0:01:50]} 2. c4 {[%emt 0:00:00]} e5 {[%emt 0:00:05]} 3. d3 {[%emt 0:00:18]} Nf6 {[%emt 0:00:06]} 4. g3 {[%emt 0:00:35]} d5 {[%emt 0:00:06]} 5. cxd5 {[%emt 0:00:19]} Nxd5 {[%emt 0:00:10]} 6. Bg2 {[%emt 0:00:23]} Be7 {[%emt 0:00:34]} 7. O-O {[%emt 0:00:26]} Nb6 {[%emt 0:00:08]} 8. b3 {[%emt 0:01:36] A20: Englische Eröffnung} (8. a3 O-O 9. Nbd2 a5 10. b3 f5 11. Bb2 Bf6 12. Qc2 Kh8 13. Rac1 Be6 14. Nc4 Nxc4 15. bxc4 Rb8 16. e3 Qe8 17. d4 e4 {1-0 (39) Ivanchuk,V (2726)-Harikrishna,P (2744) Huaian 2017}) 8... Bf6 {[%emt 0:13:15]} 9. e4 {[%emt 0:01:08]} O-O $146 {[%emt 0:00:18]} ({Vorgänger:} 9... Bg4 10. Ba3 Qd7 11. Nc3 O-O-O 12. Qc1 h5 13. Nd5 Nxd5 14. exd5 Bxf3 15. dxc6 Bxc6 16. Bxc6 Qxc6 17. Qxc6 bxc6 {0-1 (36) Teran Alvarez,I (2384)-Vazquez Igarza,R (2574) Linares 2017}) 10. Na3 {[%emt 0:03:52]} Bg4 {[%emt 0:05:25]} 11. h3 {[%emt 0:05:05]} Be6 {[%emt 0:01:00]} 12. Qe2 {[%emt 0:06:19]} Qd7 {[%emt 0:02:37]} 13. Kh2 {[%emt 0:00:34]} Rfd8 {[%emt 0:01:12]} 14. Rd1 {[%emt 0:00:21]} Nb4 {[%emt 0:01:29]} 15. Bb2 {[%emt 0:01:10]} Nc6 {[%emt 0:05:42]} 16. Rac1 {[%emt 0:04:04]} a5 {[%emt 0:05:37]} 17. Nc4 {[%emt 0:07:58]} Bxc4 {[%emt 0:01:39]} 18. bxc4 {[%emt 0:02:06]} Na4 {[%emt 0:01:20]} 19. Ba1 {[%emt 0:00:38]} Qe7 {[%emt 0:03:06]} 20. Rb1 {[%emt 0:04:32]} Nc5 {[%emt 0:01:17]} 21. a3 {[%emt 0:04:13]} a4 {[%emt 0:00:39]} 22. Rb5 {[%emt 0:02:15]} b6 $15 {[%emt 0:03:11]} 23. Ne1 {[%emt 0:03:05]} Nb3 {[%emt 0:02:13]} 24. Nc2 {[%emt 0:05:32]} Nbd4 {[%emt 0:09:55]} 25. Bxd4 {[%emt 0:00:48]} Nxd4 {[%emt 0:00:11]} 26. Nxd4 {[%emt 0:00:06]} Rxd4 {[%emt 0:00:09]} 27. f4 {[%emt 0:01:14]} Qxa3 {[%emt 0:01:53]} 28. fxe5 {[%emt 0:00:40]} Be7 {[%emt 0:00:37]} 29. Rd5 {[%emt 0:04:53]} Bc5 {[%emt 0:02:35]} 30. Qg4 {[%emt 0:01:06]} Rf8 {[%emt 0:04:15]} 31. e6 {[%emt 0:01:30]} fxe6 {[%emt 0:00:58]} 32. Qxe6+ {[%emt 0:00:08]} Kh8 {[%emt 0:00:15]} 33. h4 Qb2 {[%emt 0:01:26]} 34. h5 {[%emt 0:04:12]} h6 {[%emt 0:02:55]} 35. Kh3 {[%emt 0:00:40]} Qe2 {[%emt 0:02:43]} 36. Rh1 {[%emt 0:06:09]} Rxd3 0-1

[Event "SVK-ch Open 2018"]
[Site "Banska Stiavnica"]
[Date "2018.07.08"]
[Round "2"]
[White "Rakovsky, Jakub"]
[Black "Demeter, Peter"]
[Result "0-1"]
[ECO "B00"]
[WhiteElo "1409"]
[BlackElo "2146"]
[Annotator "NA"]
[PlyCount "118"]
[EventDate "2018.07.07"]
[EventType "swiss"]
[EventCountry "SVK"]
[SourceTitle "playchess.com"]
[Source "ChessBase"]
[SourceQuality "1"]
[TimeControl "40/5400+30:1800+30"]

1. e4 {[%emt 0:00:00]} d6 {[%emt 0:00:00]} 2. d4 {[%emt 0:00:24]} Nd7 {[%emt 0:00:22]} 3. Nf3 {[%emt 0:00:29]} e5 {[%emt 0:00:25]} 4. Bc4 {[%emt 0:01:09]} Be7 {[%emt 0:00:08]} 5. dxe5 {[%emt 0:01:34]} dxe5 {[%emt 0:01:48] C41: Philidor Defence} (5... Nxe5 6. Nxe5 dxe5 7. Qh5 g6 8. Qxe5 Nf6 9. Bh6 Rg8 10. Nc3 Qd6 11. Qxd6 Bxd6 12. Bd2 Be6 13. Bd3 O-O-O 14. Bg5 Be7 15. e5 Nd5 16. Bxe7 Nxe7 17. O-O-O h6 {½-½ (27) Van den Doel,E (2591)-Ypma,P (2324) Belgium 2018}) 6. Ng5 {[%emt 0:04:26]} Bxg5 {[%emt 0:07:04]} 7. Qh5 {[%emt 0:00:48]} g6 {[%emt 0:00:09]} 8. Qxg5 {[%emt 0:00:28]} Qxg5 {[%emt 0:00:15]} 9. Bxg5 {[%emt 0:00:07]} f6 $146 {[%emt 0:01:44]} ({Predecessor:} 9... h6 10. Be3 Ngf6 11. Nc3 c6 12. a4 Ng4 13. Bd2 {0-1 (37) Schneider,E (1719)-Lessmann,S (1604) Willingen 2018}) 10. Be3 {[%emt 0:02:12]} Nf8 {[%emt 0:05:39]} 11. Nc3 {[%emt 0:05:49]} c6 {[%emt 0:08:45]} 12. f3 {[%emt 0:02:23]} Be6 {[%emt 0:00:43]} 13. Bxe6 {[%emt 0:03:39]} Nxe6 {[%emt 0:00:43]} 14. Ne2 {[%emt 0:01:44]} a6 {[%emt 0:02:06]} 15. c3 {[%emt 0:05:03]} Rd8 {[%emt 0:02:28]} 16. Rd1 {[%emt 0:00:46]} Rxd1+ {[%emt 0:01:40]} 17. Kxd1 {[%emt 0:00:43]} Ne7 {[%emt 0:00:14]} 18. Kc2 {[%emt 0:04:49]} Nc8 {[%emt 0:03:37]} 19. Rd1 {[%emt 0:01:20]} Ke7 {[%emt 0:00:10]} 20. Nc1 {[%emt 0:04:49]} Nd6 {[%emt 0:07:01]} 21. Nd3 $11 {[%emt 0:05:28]} Nc4 {[%emt 0:02:52]} 22. Bg1 {[%emt 0:06:20]} Rd8 {[%emt 0:09:25]} 23. b3 {[%emt 0:05:40]} Na3+ {[%emt 0:04:37]} 24. Kb2 {[%emt 0:01:28]} Nb5 {[%emt 0:00:09]} 25. a4 {[%emt 0:01:52]} Nd6 {[%emt 0:06:25]} 26. Kc2 {[%emt 0:02:27]} Nf7 {[%emt 0:02:45]} 27. Nc5 {[%emt 0:05:34]} Rxd1 {[%emt 0:01:41]} 28. Kxd1 {[%emt 0:00:20]} Nd6 {[%emt 0:01:09]} 29. Nxe6 {[%emt 0:02:33]} Kxe6 {[%emt 0:00:05]} 30. Ke2 {[%emt 0:02:54]} b5 {[%emt 0:01:21]} 31. axb5 {[%emt 0:01:01]} cxb5 {[%emt 0:01:09]} 32. b4 {[%emt 0:04:52]} f5 {[%emt 0:01:06]} 33. Kd3 {[%emt 0:01:16]} fxe4+ {[%emt 0:01:35]} 34. fxe4 {[%emt 0:00:07]} Nc4 {[%emt 0:06:12]} 35. Bf2 {[%emt 0:02:47]} h5 {[%emt 0:00:54]} 36. Be1 {[%emt 0:01:22]} g5 {[%emt 0:04:04]} 37. h3 {[%emt 0:02:05]} g4 {[%emt 0:04:27]} 38. Bf2 {[%emt 0:01:31]} gxh3 {[%emt 0:03:17]} 39. gxh3 {[%emt 0:00:26]} Kd6 {[%emt 0:06:21]} 40. h4 {[%emt 0:00:34]} a5 {[%emt 0:00:38]} 41. bxa5 {[%emt 0:30:29]} Nxa5 {[%emt 0:30:09]} 42. Bg1 {[%emt 0:02:00]} Nc4 {[%emt 0:00:30]} 43. Bf2 {[%emt 0:00:18]} Kc6 {[%emt 0:01:25]} 44. Bg1 {[%emt 0:01:01]} Kb7 {[%emt 0:00:09]} 45. Bc5 {[%emt 0:01:59]} Ka6 {[%emt 0:00:23]} 46. Bf2 {[%emt 0:02:59]} Ka5 {[%emt 0:00:19]} 47. Be1 {[%emt 0:00:26]} Ka4 {[%emt 0:00:18]} 48. Bf2 {[%emt 0:01:06]} Kb3 {[%emt 0:00:23]} 49. Bg3 {[%emt 0:01:47]} Kb2 {[%emt 0:01:45]} 50. Be1 {[%emt 0:01:28]} Kc1 {[%emt 0:00:00]} 51. Bg3 {[%emt 0:00:00]} Kd1 {[%emt 0:00:00]} 52. Bf2 {[%emt 0:00:00]} Nb2+ {[%emt 0:00:00]} 53. Ke3 {[%emt 0:00:00]} Kc2 {[%emt 0:00:00]} 54. Bg3 {[%emt 0:00:00]} Nc4+ {[%emt 0:00:00]} 55. Kf3 {[%emt 0:00:00]} Kxc3 {[%emt 0:00:00]} 56. Ke2 {[%emt 0:00:00]} Kd4 {[%emt 0:00:00]} 57. Kf3 {[%emt 0:00:00]} b4 {[%emt 0:00:00]} 58. Bf2+ {[%emt 0:00:00]} Kd3 {[%emt 0:00:00]} 59. Be1 {[%emt 0:00:00]} b3 {[%emt 0:00:00]} 0-1

[Event "SVK-ch Open 2018"]
[Site "Banska Stiavnica"]
[Date "2018.07.10"]
[Round "4"]
[White "Aczel, Gergely"]
[Black "Szeberenyi, Adam"]
[Result "1-0"]
[ECO "D70"]
[WhiteElo "2543"]
[BlackElo "2372"]
[Annotator "ChessBase"]
[PlyCount "99"]
[EventDate "2018.07.07"]
[EventType "swiss"]
[EventCountry "SVK"]
[SourceTitle "playchess.com"]
[Source "ChessBase"]
[SourceQuality "1"]
[TimeControl "40/5400+30:1800+30"]

1. d4 {[%emt 0:00:00]} Nf6 {[%emt 0:00:00]} 2. c4 {[%emt 0:00:00]} g6 {[%emt 0:00:00]} 3. f3 {[%emt 0:00:00]} d5 {[%emt 0:00:00]} 4. cxd5 {[%emt 0:00:00]} Nxd5 {[%emt 0:00:00]} 5. e4 {[%emt 0:00:00]} Nb6 {[%emt 0:00:00]} 6. Nc3 {[%emt 0:00:00]} Bg7 {[%emt 0:00:04]} 7. Be3 {[%emt 0:00:00]} O-O {[%emt 0:00:08]} 8. Qd2 {[%emt 0:00:04]} Nc6 {[%emt 0:00:39]} 9. O-O-O {[%emt 0:00:12]} f5 {[%emt 0:00:18]} 10. e5 {[%emt 0:00:07]} Nb4 {[%emt 0:00:12]} 11. Nh3 {[%emt 0:00:04]} Be6 {[%emt 0:00:07]} 12. Kb1 {[%emt 0:00:05]} Qd7 {[%emt 0:00:29]} 13. Nf4 {[%emt 0:00:38]} Rfd8 {[%emt 0:00:35]} 14. a3 {[%emt 0:01:16]} a5 {[%emt 0:00:04]} 15. d5 {[%emt 0:00:58]} N4xd5 {[%emt 0:00:14]} 16. Ncxd5 {[%emt 0:00:36]} Nxd5 {[%emt 0:00:08]} 17. Bc4 {[%emt 0:00:53]} c6 {[%emt 0:00:07]} 18. Bb6 {[%emt 0:00:40]} Bh6 {[%emt 0:00:07]} 19. Bxd8 {[%emt 0:05:28]} Rxd8 {[%emt 0:00:45]} 20. g3 {[%emt 0:00:18]} Bxf4 {[%emt 0:00:03]} 21. gxf4 {[%emt 0:00:21]} b5 {[%emt 0:00:03]} 22. Bxd5 {[%emt 0:09:53]} Qxd5 {[%emt 0:03:00]} 23. Qxd5 {[%emt 0:03:25]} Bxd5 {[%emt 0:00:07]} 24. Kc2 {[%emt 0:15:05]} Rc8 {[%emt 0:00:33]} 25. Rd3 {[%emt 0:01:12]} e6 {[%emt 0:01:24]} 26. b4 {[%emt 0:37:11]} axb4 {[%emt 0:22:26]} 27. axb4 {[%emt 0:00:05]} c5 {[%emt 0:07:19]} 28. Rc3 {[%emt 0:12:16]} c4 {[%emt 0:32:52]} 29. Ra1 {[%emt 0:05:02]} Kg7 {[%emt 0:01:07]} 30. Ra5 {[%emt 0:00:30]} Rb8 {[%emt 0:00:54]} 31. Kd2 {[%emt 0:01:18]} g5 {[%emt 0:06:50]} 32. Ke3 {[%emt 0:00:17]} g4 {[%emt 0:01:37]} 33. fxg4 {[%emt 0:00:15]} fxg4 {[%emt 0:00:03]} 34. f5 {[%emt 0:00:54]} exf5 {[%emt 0:01:42]} 35. Kf4 {[%emt 0:00:02]} Be6 {[%emt 0:02:29]} 36. Ra6 {[%emt 0:01:10]} Kf7 {[%emt 0:00:43]} 37. Ra7+ {[%emt 0:03:02]} Kg6 {[%emt 0:01:02]} 38. Re7 {[%emt 0:00:46]} Rb6 {[%emt 0:02:19]} 39. Ra3 {[%emt 0:00:12]} Rc6 {[%emt 0:01:45]} 40. Raa7 {[%emt 0:00:03]} h6 {[%emt 0:00:03]} 41. Rec7 {[%emt 0:34:48]} Rxc7 {[%emt 0:35:32]} 42. Rxc7 {[%emt 0:00:02]} Bd5 {[%emt 0:06:01]} 43. Rc5 {[%emt 0:00:00]} Be4 {[%emt 0:00:00]} 44. Rxb5 {[%emt 0:00:00]} c3 {[%emt 0:00:00]} 45. Rc5 {[%emt 0:00:00]} c2 {[%emt 0:00:00]} 46. b5 {[%emt 0:00:00]} h5 {[%emt 0:00:00]} 47. b6 {[%emt 0:00:00]} h4 {[%emt 0:00:00]} 48. Rxc2 {[%emt 0:00:00]} g3 {[%emt 0:00:00]} 49. hxg3 {[%emt 0:00:00]} h3 {[%emt 0:00:00]} 50. Rh2 {[%emt 0:00:00]} 1-0

[Event "SVK-ch Open 2018"]
[Site "Banska Stiavnica"]
[Date "2018.07.10"]
[Round "4"]
[White "Bokros, Albert"]
[Black "Ruckschloss, Karol"]
[Result "1-0"]
[ECO "C00"]
[WhiteElo "2483"]
[BlackElo "2245"]
[Annotator "RC"]
[PlyCount "77"]
[EventDate "2018.07.07"]
[EventType "swiss"]
[EventCountry "SVK"]
[SourceTitle "playchess.com"]
[Source "ChessBase"]
[SourceQuality "1"]
[TimeControl "40/5400+30:1800+30"]

1. e4 {[%emt 0:00:50]} e6 {[%emt 0:00:00]} 2. Qe2 {[%emt 0:00:56]} c5 {[%emt 0:00:49]} 3. Nf3 {[%emt 0:00:06]} Nc6 {[%emt 0:00:31]} 4. g3 {[%emt 0:00:05]} g6 {[%emt 0:00:24]} 5. Bg2 {[%emt 0:00:14]} Bg7 {[%emt 0:00:06]} 6. O-O {[%emt 0:00:23]} Nge7 {[%emt 0:00:43]} 7. c3 {[%emt 0:00:06]} d6 {[%emt 0:01:36]} 8. d3 {[%emt 0:01:00]} O-O {[%emt 0:01:50]} 9. Na3 {[%emt 0:01:29]} b6 {[%emt 0:12:42]} 10. Rd1 {[%emt 0:07:11]} Ba6 {[%emt 0:05:54]} 11. Be3 {[%emt 0:07:57]} d5 {[%emt 0:14:48]} 12. exd5 {[%emt 0:07:56]} exd5 {[%emt 0:05:22]} 13. Qd2 {[%emt 0:03:04]} Nf5 {[%emt 0:06:25]} 14. Bf4 {[%emt 0:01:49]} d4 {[%emt 0:02:58]} 15. c4 {[%emt 0:03:40]} Bb7 {[%emt 0:07:54]} 16. Nc2 {[%emt 0:04:37]} a5 {[%emt 0:01:22]} 17. Na3 {[%emt 0:04:18]} Nd6 {[%emt 0:02:20]} 18. Re1 {[%emt 0:05:56]} Qd7 {[%emt 0:06:27]} 19. Bxd6 {[%emt 0:16:14]} Qxd6 {[%emt 0:00:02]} 20. Nb5 {[%emt 0:00:09]} Qd7 {[%emt 0:02:15]} 21. a3 {[%emt 0:03:48]} Na7 {[%emt 0:06:34]} 22. Nxa7 {[%emt 0:02:18]} Rxa7 {[%emt 0:00:08]} 23. Qf4 {[%emt 0:01:00]} Raa8 {[%emt 0:04:10]} 24. Nd2 {[%emt 0:07:03]} Bxg2 {[%emt 0:02:32]} 25. Kxg2 {[%emt 0:00:43]} Rfe8 {[%emt 0:02:09]} 26. Ne4 {[%emt 0:04:30]} Re6 {[%emt 0:01:11]} 27. Ng5 {[%emt 0:00:56]} Bh6 {[%emt 0:01:26]} 28. Rxe6 {[%emt 0:01:40]} fxe6 {[%emt 0:01:27]} 29. Qe4 {[%emt 0:03:18]} Re8 {[%emt 0:01:29]} 30. Nf3 {[%emt 0:00:34]} Bg7 {[%emt 0:00:42]} 31. h4 {[%emt 0:03:17]} Bf6 {[%emt 0:00:13]} 32. h5 {[%emt 0:01:42]} Kg7 {[%emt 0:03:01]} 33. Rh1 {[%emt 0:00:15]} Qc8 {[%emt 0:00:22]} 34. hxg6 {[%emt 0:00:56]} hxg6 {[%emt 0:00:03]} 35. Qf4 {[%emt 0:00:15]} e5 {[%emt 0:03:12]} 36. Qh6+ {[%emt 0:00:47]} Kf7 {[%emt 0:00:03]} 37. Qh7+ {[%emt 0:00:09]} Bg7 {[%emt 0:00:15]} 38. Ng5+ {[%emt 0:00:09]} Kf8 {[%emt 0:00:10]} 39. Qxg6 {[%emt 0:00:14]} 1-0